bitfinex-derivatives/quotes_SOLF0:USTF0_20250328
["timestamp","ask_amount","ask_price","bid_price","bid_amount"]
[1743160710355,0.05878127,131.11,131.1,9.89254312]
[1743160711958,27.2,131.16,131.13,9.89254312]
[1743160712355,7.6278,131.15,131.13,9.89254312]
[1743160713060,0.05654069,131.15,131.14,9.89254312]
[1743160714255,0.05654069,131.15,131.14,17.52084312]
[1743160715059,27.2,131.23,131.14,71.89254312]
[1743160715258,15.77464156,131.24,131.21,9.89254312]
[1743160715458,13.75624156,131.24,131.21,9.89254312]
[1743160715665,27.2,131.25,131.23,9.89254312]
[1743160715958,31.80601095,131.27,131.23,9.89254312]
[1743160716160,31.80601095,131.27,131.24,9.89254312]
[1743160716356,0.0563417,131.26,131.24,9.89254312]
[1743160716953,0.0563417,131.26,131.23,23.04093754]
[1743160717452,0.0563417,131.26,131.23,0.05490203]
[1743160717658,27.2,131.25,131.23,0.05490203]
[1743160717854,42.56333551,131.25,131.14,15.36333551]
[1743160718055,7.6261,131.18,131.14,15.36333551]
[1743160718956,0.05585971,131.17,131.15,0.04940356]
[1743160720665,7.6271,131.16,131.15,0.04940356]
[1743160721463,0.05585971,131.17,131.15,0.04940356]
[1743160721772,27.24,131.23,131.16,15.36333551]
[1743160722062,15.36333551,131.22,131.13,15.36333551]
[1743160722658,7.6266,131.17,131.13,15.36333551]
[1743160722857,27.32,131.17,131.16,0.05436113]
[1743160723671,0.04936258,131.18,131.16,0.05436113]
[1743160727267,0.04936258,131.18,131.16,7.68136113]
[1743160727870,0.04936258,131.18,131.16,0.05436113]
[1743160730073,0.04936258,131.18,131.16,7.68146113]
[1743160730972,0.04936258,131.18,131.17,7.6265]
[1743160731167,34.9033,131.23,131.17,15.36333551]
[1743160731460,7.6228,131.24,131.2,7.6245]
[1743160731664,27.28,131.24,131.19,15.36333551]
[1743160732174,0.05136721,131.23,131.2,0.04814541]
[1743160732568,0.05136721,131.23,131.21,7.6242]
[1743160732769,0.05136721,131.23,131.2,0.04814541]
[1743160733473,0.05136721,131.23,131.21,15.36333551]
[1743160734771,0.05136721,131.23,131.22,7.6236]
[1743160738270,0.05136721,131.23,131.21,22.98733551]
[1743160738472,0.05136721,131.23,131.21,15.36333551]
[1743160738673,7.6239,131.22,131.2,0.04814541]
[1743160739276,0.05136721,131.23,131.2,0.04814541]
[1743160740082,7.6241,131.22,131.2,0.04814541]
[1743160740584,7.6242,131.21,131.2,0.04814541]
[1743160740879,0.05136721,131.23,131.2,0.04814541]
[1743160741281,7.6236,131.22,131.2,0.04814541]
[1743160741478,0.05136721,131.23,131.2,0.04814541]
[1743160741878,7.6242,131.21,131.2,0.04814541]
[1743160742079,34.8842,131.21,131.2,0.04814541]
[1743160743682,27.26,131.21,131.2,0.04814541]
[1743160745080,34.8842,131.21,131.2,0.04814541]
[1743160745284,27.26,131.21,131.2,0.04814541]
[1743160746482,0.05136721,131.23,131.2,0.04814541]
[1743160746678,0.05136721,131.23,131.21,15.36333551]
[1743160747683,7.67476721,131.23,131.21,15.36333551]
[1743160748488,35.37476721,131.23,131.21,15.36333551]
[1743160749588,27.75136721,131.23,131.21,22.98743551]
[1743160750595,35.37446721,131.23,131.21,15.36333551]
[1743160750895,27.75136721,131.23,131.2,0.04814541]
[1743160751086,7.6241,131.22,131.2,0.04814541]
[1743160752106,27.75136721,131.23,131.2,0.04814541]
[1743160752601,35.37466721,131.23,131.2,7.67264541]
[1743160752799,35.37466721,131.23,131.2,0.04814541]
[1743160752998,27.75136721,131.23,131.2,0.04814541]
[1743160753298,27.75136721,131.23,131.21,7.6242]
[1743160753899,35.37446721,131.23,131.2,7.67264541]
[1743160754405,27.75136721,131.23,131.2,0.04814541]
[1743160754905,35.37446721,131.23,131.2,0.04814541]
[1743160755097,27.75136721,131.23,131.2,0.04814541]
[1743160755296,27.75136721,131.23,131.21,15.36333551]
[1743160755999,0.05136721,131.23,131.21,22.98733551]
[1743160758995,0.05136721,131.23,131.22,9.83681339]
[1743160760610,0.05136721,131.23,131.22,17.46041339]
[1743160761007,0.05136721,131.23,131.22,9.83681339]
[1743160761411,0.05136721,131.23,131.22,17.46041339]
[1743160764514,7.67446721,131.23,131.22,9.83681339]
[1743160764715,0.05136721,131.23,131.21,9.83681339]
[1743160765208,7.67466721,131.23,131.21,9.83681339]
[1743160765414,0.05136721,131.23,131.21,9.83681339]
[1743160766014,7.67476721,131.23,131.21,9.83681339]
[1743160767108,7.67476721,131.23,131.22,9.83681339]
[1743160767911,0.05136721,131.23,131.22,9.83681339]
[1743160769406,7.67446721,131.23,131.22,9.83681339]
[1743160769611,0.05136721,131.23,131.22,9.83681339]
[1743160770512,27.52,131.25,131.22,9.83681339]
[1743160770815,7.6214,131.26,131.24,9.83681339]
[1743160771003,35.1614,131.26,131.25,9.83681339]
[1743160773916,7.6214,131.26,131.25,9.83681339]
[1743160774517,35.1214,131.26,131.25,9.83681339]
[1743160780817,27.5,131.26,131.25,9.83681339]
[1743160781818,27.5,131.26,131.25,17.45871339]
[1743160782016,27.5,131.26,131.25,9.83681339]
[1743160782217,27.5,131.26,131.24,0.0545378]
[1743160782412,27.5,131.26,131.24,9.89135119]
[1743160782819,27.5,131.26,131.25,9.83681339]
[1743160783415,35.1213,131.26,131.25,9.83681339]
[1743160783810,35.1213,131.26,131.24,9.89135119]
[1743160784109,7.6219,131.25,131.24,0.0545378]
[1743160785020,27.5,131.26,131.24,0.0545378]
[1743160785716,7.6219,131.25,131.24,0.0545378]
[1743160787121,35.1216,131.26,131.24,0.0545378]
[1743160787321,35.1216,131.26,131.25,9.83681339]
[1743160788416,0.05610542,131.27,131.25,9.83681339]
[1743160788726,0.05610542,131.27,131.26,9.83681339]
[1743160788923,7.67720542,131.27,131.26,9.83681339]
[1743160791714,7.6215,131.26,131.25,9.83681339]
[1743160793415,7.67720542,131.27,131.25,9.83681339]
[1743160795428,7.67720542,131.27,131.26,9.83681339]
[1743160795629,7.6214,131.26,131.25,9.83681339]
[1743160795830,0.05610542,131.27,131.25,9.83681339]
[1743160796127,7.67720542,131.27,131.25,9.83681339]
[1743160798029,7.67720542,131.27,131.26,9.83681339]
[1743160798826,9.83681339,131.33,131.26,17.45811339]
[1743160799025,27.28,131.32,131.28,9.83681339]
[1743160799228,9.83681339,131.31,131.26,9.83681339]
[1743160800130,0.05802596,131.3,131.27,0.05297634]
[1743160800433,7.6205,131.28,131.27,0.05297634]
[1743160803333,27.28,131.29,131.27,9.88978973]
[1743160803736,7.6202,131.28,131.27,9.88978973]
[1743160804435,34.8999,131.29,131.27,9.88978973]
[1743160805834,7.6199,131.29,131.27,9.88978973]
[1743160808732,7.6202,131.28,131.27,9.88978973]
[1743160809637,7.6199,131.29,131.27,9.88978973]
[1743160810436,7.6199,131.29,131.28,9.83681339]
[1743160812146,35.01732596,131.3,131.28,9.83681339]
[1743160812330,34.97732596,131.3,131.29,9.83681339]
[1743160818138,0.05802596,131.3,131.29,9.83681339]
[1743160818342,27.24,131.34,131.29,9.83681339]
[1743160818641,9.83681339,131.36,131.32,9.83681339]
[1743160818840,7.618,131.32,131.31,9.83681339]
[1743160819042,27.36,131.32,131.3,9.83681339]
[1743160819245,7.6187,131.31,131.3,9.83681339]
[1743160819444,7.6187,131.31,131.3,9.88804576]
[1743160819644,7.6187,131.31,131.3,0.05123237]
[1743160819843,34.9787,131.31,131.3,0.05123237]
[1743160820135,27.36,131.31,131.3,0.05123237]
[1743160821147,27.36,131.31,131.3,9.88804576]
[1743160821447,0.05791118,131.32,131.3,9.88804576]
[1743160821648,0.05791118,131.32,131.31,9.83681339]
[1743160821944,0.05791118,131.32,131.3,9.88804576]
[1743160822146,0.05791118,131.32,131.31,9.83681339]
[1743160822541,7.67571118,131.32,131.31,9.83681339]
[1743160822741,0.05791118,131.32,131.31,9.83681339]
[1743160827452,0.05791118,131.32,131.3,9.88804576]
[1743160827841,0.05791118,131.32,131.3,17.50704576]
[1743160829253,0.05791118,131.32,131.3,9.88804576]
[1743160830255,0.05791118,131.32,131.3,17.50704576]
[1743160830455,0.05791118,131.32,131.31,9.83681339]
[1743160830846,7.67571118,131.32,131.31,9.83681339]
[1743160831052,7.67571118,131.32,131.3,9.88804576]
[1743160831949,7.6184,131.31,131.3,9.88804576]
[1743160832155,0.05791118,131.32,131.3,0.05123237]
[1743160832457,7.67621118,131.32,131.3,0.05123237]
[1743160834351,7.67621118,131.32,131.3,9.88804576]
[1743160837355,0.05791118,131.32,131.3,9.88804576]
[1743160838260,0.05791118,131.32,131.31,9.83681339]
[1743160839163,7.67581118,131.32,131.3,9.88804576]
[1743160840358,7.67581118,131.32,131.31,9.83681339]
[1743160840963,0.05791118,131.32,131.31,9.83681339]
[1743160841662,7.67571118,131.32,131.31,9.83681339]
[1743160843766,0.05791118,131.32,131.31,9.83681339]
[1743160844463,7.67571118,131.32,131.31,9.83681339]
[1743160844661,0.05791118,131.32,131.31,9.83681339]
[1743160845057,11.64560063,131.41,131.31,9.83681339]
[1743160845260,27.28,131.4,131.35,9.83681339]
[1743160845665,37.11681339,131.4,131.35,9.83681339]
[1743160846169,7.6156,131.36,131.34,9.83681339]
[1743160846362,27.3,131.35,131.34,0.05077001]
[1743160848671,34.9161,131.35,131.34,0.05077001]
[1743160851177,7.6181,131.32,131.29,9.83681339]
[1743160851380,27.36,131.31,131.29,9.83681339]
[1743160851679,9.83681339,131.34,131.29,9.83681339]
[1743160851680,27.36,131.3,131.29,9.83681339]
[1743160853178,0.05077001,131.31,131.29,9.83681339]
[1743160853379,0.05077001,131.31,131.3,9.83681339]
[1743160853680,0.05077001,131.31,131.3,17.45581339]
[1743160854174,0.05077001,131.31,131.3,9.83681339]
[1743160855673,0.05077001,131.31,131.3,17.45581339]
[1743160856473,7.6169,131.34,131.3,9.83681339]
[1743160856775,7.6169,131.34,131.33,9.83681339]
[1743160856983,27.42,131.35,131.31,9.83681339]
[1743160857579,7.6176,131.33,131.32,0.05838032]
[1743160862178,1.9743,131.4,131.32,9.89519371]
[1743160862378,27.44,131.39,131.36,9.83681339]
[1743160862574,27.44,131.39,131.37,9.83681339]
[1743160862778,27.44,131.39,131.36,9.83681339]
[1743160862980,27.44,131.39,131.37,0.05525737]
[1743160863175,7.6146,131.38,131.37,0.05525737]
[1743160863386,35.0546,131.38,131.37,0.05525737]
[1743160867394,44.89681339,131.38,131.25,164.49717815]
[1743160867690,9.83681339,131.34,131.29,9.83681339]
[1743160867890,27.38,131.33,131.29,9.83681339]
[1743160868488,7.6187,131.31,131.29,9.83681339]
[1743160868688,7.6187,131.31,131.3,0.05059604]
[1743160874100,7.6187,131.31,131.3,9.88740943]
[1743160875701,7.6187,131.31,131.3,0.05059604]
[1743160876001,7.6187,131.31,131.3,9.88740943]
[1743160877193,7.66881952,131.32,131.3,9.88740943]
[1743160877395,0.05071952,131.32,131.31,9.83681339]
[1743160877592,0.05071952,131.32,131.31,17.45521339]
[1743160877899,0.05071952,131.32,131.31,9.83681339]
[1743160878897,0.05071952,131.32,131.31,17.45521339]
[1743160879701,7.6169,131.34,131.33,9.83681339]
[1743160879902,7.6163,131.35,131.33,9.83681339]
[1743160880102,27.44,131.36,131.34,9.83681339]
[1743160880502,35.056,131.36,131.34,9.83681339]
[1743160880802,9.83681339,131.39,131.35,9.83681339]
[1743160881003,27.42,131.37,131.35,9.83681339]
[1743160881405,261.25681339,131.42,131.36,9.83681339]
[1743160881706,27.5,131.41,131.38,9.83681339]
[1743160881998,7.6132,131.4,131.38,9.88776514]
[1743160883705,27.52,131.41,131.39,9.83681339]
[1743160883706,35.1329,131.41,131.39,9.83681339]
[1743160884106,7.6132,131.4,131.39,9.83681339]
[1743160885710,11.83681339,131.45,131.39,9.83681339]
[1743160885905,11.83681339,131.45,131.4,9.83681339]
[1743160886104,7.6125,131.42,131.41,9.88780019]
[1743160886307,7.6125,131.42,131.41,0.0509868]
[1743160887708,17.44931339,131.42,131.41,0.0509868]
[1743160887910,9.83681339,131.42,131.36,9.83681339]
[1743160888110,9.83681339,131.4,131.36,9.83681339]
[1743160888406,7.6146,131.38,131.36,9.83681339]
[1743160889107,7.6650796,131.38,131.36,9.88518659]
[1743160889309,0.0504796,131.38,131.37,9.83681339]
[1743160889709,0.0504796,131.38,131.37,17.45171339]
[1743160894617,0.0504796,131.38,131.37,9.83681339]
[1743160896714,0.0504796,131.38,131.37,17.45171339]
[1743160901415,7.6649796,131.38,131.36,9.88518659]
[1743160902427,7.6649796,131.38,131.36,17.50068659]
[1743160902932,0.0504796,131.38,131.37,9.83681339]
[1743160903130,0.0504796,131.38,131.37,17.45171339]
[1743160905840,2.1407,131.46,131.37,9.83681339]
[1743160906029,7.6123,131.42,131.4,9.83681339]
[1743160906230,9.83681339,131.44,131.39,9.83681339]
[1743160906633,9.83681339,131.43,131.31,607.34]
[1743160906832,27.34,131.42,131.38,9.83681339]
[1743160907136,364.0,131.5,131.41,9.83681339]
[1743160907338,11.83941339,131.47,131.41,17.44941339]
[1743160907531,7.6106,131.45,131.36,27.42]
[1743160907731,27.42,131.44,131.41,9.83681339]
[1743160908733,27.42,131.44,131.42,7.6118]
[1743160909134,27.42,131.44,131.42,7.66424842]
[1743160909440,2.0026,131.47,131.43,17.44831339]
[1743160909736,7.6106,131.45,131.42,9.88926181]
[1743160909927,9.83681339,131.45,131.42,0.05244842]
[1743160910333,34.9909,131.44,131.42,0.05244842]
[1743160910834,9.83681339,131.43,131.34,27.36]
[1743160911038,9.83681339,131.43,131.38,9.83681339]
[1743160911429,7.6118,131.43,131.39,9.83681339]
[1743160911637,11.58240566,131.54,131.42,9.83681339]
[1743160911839,11.58240566,131.54,131.39,29.5]
[1743160911840,29.68,131.5,131.47,9.83681339]
[1743160912032,29.88,131.5,131.45,0.05756215]
[1743160912233,0.04981053,131.48,131.45,9.89437554]
[1743160912439,0.04981053,131.48,131.45,0.05756215]
[1743160912440,7.65871053,131.48,131.45,0.05756215]
[1743160912741,9.88662392,131.48,131.45,0.05756215]
[1743160912938,7.6091,131.47,131.45,0.05756215]
[1743160913241,30.0,131.46,131.45,0.05756215]
[1743160913436,37.6097,131.46,131.45,0.05756215]
[1743160913935,30.0,131.46,131.45,0.05756215]
[1743160914627,7.65871053,131.48,131.45,9.89437554]
[1743160914628,0.04981053,131.48,131.45,9.89437554]
[1743160914834,116.62204015,131.53,131.47,9.83681339]
[1743160915036,116.62204015,131.53,131.5,9.83681339]
[1743160915037,7.6065,131.52,131.5,9.83681339]
[1743160915533,37.6265,131.52,131.5,9.83681339]
[1743160915935,37.6265,131.52,131.5,9.88827498]
[1743160916237,30.02,131.52,131.5,9.88827498]
[1743160916740,37.6263,131.52,131.5,9.88827498]
[1743160916941,30.02,131.52,131.5,0.05146159]
[1743160917838,37.6265,131.52,131.5,0.05146159]
[1743160919443,7.6068,131.51,131.5,0.05146159]
[1743160919838,37.6265,131.52,131.5,0.05146159]
[1743160920043,7.6065,131.52,131.5,0.05146159]
[1743160920242,15.2052,131.59,131.5,15.35577494]
[1743160920444,4.1431,131.58,131.5,15.30431335]
[1743160920641,34.3231,131.58,131.53,0.05540372]
[1743160920841,15.30431335,131.57,131.53,0.05540372]
[1743160921137,15.30431335,131.55,131.46,15.30431335]
[1743160921341,30.14,131.54,131.46,15.30431335]
[1743160921543,7.608,131.49,131.46,22.91381335]
[1743160921846,30.12,131.5,131.46,22.91381335]
[1743160922041,37.7277,131.5,131.46,22.91381335]
[1743160922241,37.7277,131.5,131.47,0.05163133]
[1743160922242,0.04948884,131.49,131.47,0.05163133]
[1743160922445,0.04948884,131.49,131.47,7.66073133]
[1743160923543,0.04948884,131.49,131.48,22.91291335]
[1743160923746,0.04948884,131.49,131.47,0.05163133]
[1743160924343,0.04948884,131.49,131.48,15.30431335]
[1743160924648,30.1,131.53,131.48,7.6085]
[1743160925146,30.1,131.53,131.49,7.6079]
[1743160925350,30.1,131.53,131.48,15.30431335]
[1743160925742,30.1,131.53,131.5,7.6069]
[1743160925943,30.1,131.53,131.49,0.05823571]
[1743160926449,7.6063,131.52,131.49,0.05823571]
[1743160926650,30.1,131.53,131.49,0.05823571]
[1743160926843,37.7059,131.53,131.5,7.6071]
[1743160927044,30.1,131.54,131.5,15.30431335]
[1743160927441,37.7054,131.54,131.51,7.6064]
[1743160927647,30.1,131.54,131.51,7.6064]
[1743160928448,257.627673,131.67,131.52,15.30431335]
[1743160928650,15.30431335,131.6,131.52,15.30431335]
[1743160928843,7.6034,131.57,131.56,0.05041803]
[1743160929037,30.12,131.57,131.56,0.05041803]
[1743160929850,32.2479,131.59,131.56,0.05041803]
[1743160930052,30.16,131.59,131.57,7.6033]
[1743160930246,17.39331335,131.63,131.56,0.05041803]
[1743160930449,30.38,131.62,131.56,15.35473138]
[1743160931746,30.38,131.62,131.58,15.30431335]
[1743160932251,30.44,131.62,131.6,7.6013]
[1743160932945,30.44,131.62,131.59,7.65283377]
[1743160933147,30.44,131.62,131.59,0.05083377]
[1743160933748,50.0,131.64,131.59,0.05083377]
[1743160933950,7.6009,131.62,131.59,0.05083377]
[1743160934349,7.6006,131.62,131.59,0.05083377]
[1743160934952,30.58,131.63,131.59,0.05083377]
[1743160935153,50.0,131.64,131.59,0.05083377]
[1743160935655,15.30431335,131.63,131.59,0.05083377]
[1743160935854,15.30431335,131.63,131.54,7.6047]
[1743160935855,17.44951335,131.63,131.54,7.6047]
[1743160936049,7.6027,131.59,131.54,7.6047]
[1743160936244,30.68,131.58,131.54,7.6047]
[1743160936449,38.2831,131.58,131.54,7.6047]
[1743160936958,0.05563578,131.57,131.55,0.05029374]
[1743160937548,2.09923578,131.57,131.55,0.05029374]
[1743160938160,0.05563578,131.57,131.55,0.05029374]
[1743160938351,0.05563578,131.57,131.55,7.65459374]
[1743160938756,0.05563578,131.57,131.55,22.95890709]
[1743160938956,0.05563578,131.57,131.55,15.35460709]
[1743160940759,2.0436,131.63,131.55,15.35460709]
[1743160941059,34.0636,131.63,131.58,15.30431335]
[1743160941262,41.6639,131.63,131.58,22.90671335]
[1743160941456,41.6639,131.63,131.58,15.30431335]
[1743160941755,34.0636,131.63,131.58,15.30431335]
[1743160941961,32.02,131.63,131.59,0.05609188]
[1743160942164,32.02,131.63,131.6,15.30431335]
[1743160942348,39.62,131.63,131.6,22.90571335]
[1743160942549,32.02,131.63,131.59,0.05609188]
[1743160942951,39.6201,131.63,131.59,7.65789188]
[1743160943156,32.02,131.63,131.59,0.05609188]
[1743160943958,32.02,131.63,131.61,7.6006]
[1743160944161,32.02,131.63,131.6,15.30431335]
[1743160944557,32.02,131.63,131.62,7.6005]
[1743160944859,32.02,131.63,131.59,0.05609188]
[1743160945361,32.02,131.63,131.6,7.6015]
[1743160945566,32.02,131.63,131.59,0.05609188]
[1743160945762,32.02,131.63,131.61,7.6006]
[1743160946060,32.22,131.67,131.62,15.30431335]
[1743160946262,32.24,131.67,131.66,7.5981]
[1743160946459,32.24,131.67,131.63,0.04810489]
[1743160946962,7.5983,131.66,131.63,7.64770489]
[1743160947166,32.24,131.67,131.63,0.04810489]
[1743160948063,7.5985,131.66,131.63,7.64770489]
[1743160948364,7.5985,131.66,131.63,0.04810489]
[1743160948966,7.5987,131.65,131.63,0.04810489]
[1743160949165,32.24,131.67,131.63,0.04810489]
[1743160949367,2.0394,131.69,131.66,15.30431335]
[1743160949873,2.0394,131.69,131.66,0.04881275]
[1743160950461,7.5976,131.67,131.66,0.04881275]
[1743160950667,36.56,131.68,131.66,0.04881275]
[1743160950863,36.56,131.68,131.6,15.30431335]
[1743160951064,7.599,131.65,131.6,15.30431335]
[1743160951281,1.9607,131.67,131.59,7.6019]
[1743160951766,1.9607,131.67,131.58,273.72681335]
[1743160951963,15.30431335,131.66,131.58,15.30431335]
[1743160952164,7.65582614,131.64,131.61,0.05314462]
[1743160952359,36.59612614,131.64,131.61,0.05314462]
[1743160952562,51.90043949,131.64,131.54,15.30431335]
[1743160952766,15.30431335,131.62,131.54,15.30431335]
[1743160953066,51.84431335,131.64,131.53,33.88510668]
[1743160953260,7.602,131.6,131.54,15.30431335]
[1743160953461,44.182,131.6,131.55,7.6041]
[1743160953665,0.05436071,131.58,131.56,0.05085478]
[1743160954367,7.6034,131.57,131.56,0.05085478]
[1743160954668,15.35867406,131.58,131.5,15.30431335]
[1743160954857,36.56,131.6,131.54,15.30431335]
[1743160955371,36.56,131.6,131.56,7.6036]
[1743160955564,36.56,131.6,131.54,15.30431335]
[1743160955763,0.05145049,131.59,131.57,0.05653177]
[1743160958868,7.6028,131.58,131.57,0.05653177]
[1743160959070,0.05145049,131.59,131.52,15.30431335]
[1743160959265,0.05145049,131.59,131.53,7.6053]
[1743160959666,0.05145049,131.59,131.52,15.30431335]
[1743160960063,0.05145049,131.59,131.54,15.36109564]
[1743160960373,0.05145049,131.59,131.58,7.6028]
[1743160961770,43.8197,131.64,131.6,7.6013]
[1743160961969,43.8197,131.64,131.58,15.30431335]
[1743160961970,36.22,131.64,131.58,15.30431335]
[1743160962173,7.6003,131.63,131.56,15.30431335]
[1743160962576,7.6003,131.63,131.59,7.6018]
[1743160962875,7.65707456,131.62,131.6,0.05596704]
[1743160963176,0.05647456,131.62,131.6,0.05596704]
[1743160964079,7.601,131.61,131.6,0.05596704]
[1743160965381,9.6211,131.61,131.6,0.05596704]
[1743160966784,0.05647456,131.62,131.6,0.05596704]
[1743160967284,7.65737456,131.62,131.6,0.05596704]
[1743160968789,0.05647456,131.62,131.6,0.05596704]
[1743160969888,7.65697456,131.62,131.6,0.05596704]
[1743160970688,0.05647456,131.62,131.61,7.601]
[1743160970886,0.05647456,131.62,131.6,0.05596704]
[1743160972379,0.05647456,131.62,131.6,7.65726704]
[1743160972586,0.05647456,131.62,131.6,0.05596704]
[1743160972890,7.601,131.61,131.6,0.05596704]
[1743160973396,0.05647456,131.62,131.6,7.65716704]
[1743160974000,0.05647456,131.62,131.61,7.601]
[1743160974394,0.05647456,131.62,131.6,0.05596704]
[1743160974588,0.05647456,131.62,131.6,7.65716704]
[1743160974898,0.05647456,131.62,131.6,0.05596704]
[1743160975292,0.05647456,131.62,131.61,7.601]
[1743160976193,35.95647456,131.62,131.6,0.05596704]
[1743160977795,7.601,131.61,131.6,0.05596704]
[1743160979298,15.30431335,131.61,131.53,252.9116]
[1743160979503,4.0819,131.6,131.52,15.30431335]
[1743160979799,7.6055,131.54,131.49,134.33263784]
[1743160980003,35.68,131.55,131.49,134.33263784]
[1743160980389,0.05442661,131.53,131.51,0.05372042]
[1743160980793,0.05442661,131.53,131.52,7.6062]
[1743160981094,0.05442661,131.53,131.51,0.05372042]
[1743160982007,0.05442661,131.53,131.52,7.6062]
[1743160983205,0.05442661,131.53,131.52,22.91051335]
[1743160984706,4.0819,131.6,131.52,15.30431335]
[1743160984906,43.1825,131.59,131.56,7.6036]
[1743160985806,35.58,131.59,131.57,7.6033]
[1743160986106,35.63177602,131.59,131.57,7.6033]
[1743160986309,0.05177602,131.59,131.58,7.6028]
[1743160987406,0.05177602,131.59,131.58,22.90711335]
[1743160989512,35.48,131.62,131.61,7.601]
[1743160989707,7.5996,131.64,131.6,15.30431335]
[1743160990103,7.5996,131.64,131.61,7.6009]
[1743160990308,35.22,131.69,131.62,15.30431335]
[1743160990506,35.22,131.68,131.62,15.30431335]
[1743160990709,0.05257216,131.67,131.64,0.0537559]
[1743160991615,35.21257216,131.67,131.64,0.0537559]
[1743160991912,7.5985,131.66,131.64,0.0537559]
[1743160992312,42.81037216,131.67,131.64,0.0537559]
[1743160992612,0.05257216,131.67,131.64,0.0537559]
[1743160992808,7.65017216,131.67,131.64,0.0537559]
[1743160993011,0.05257216,131.67,131.64,15.35806925]
[1743160993206,0.05257216,131.67,131.64,0.0537559]
[1743160993407,7.65037216,131.67,131.64,7.6527559]
[1743160993815,0.05257216,131.67,131.64,0.0537559]
[1743160994111,7.5983,131.66,131.64,0.0537559]
[1743160994312,0.05257216,131.67,131.64,0.0537559]
[1743160994512,0.05257216,131.67,131.65,7.5987]
[1743160995410,0.05257216,131.67,131.66,7.5982]
[1743160995903,0.05257216,131.67,131.65,7.5985]
[1743160996107,0.05257216,131.67,131.64,15.35806925]
[1743160996815,0.05257216,131.67,131.64,0.0537559]
[1743160997017,7.5987,131.65,131.64,0.0537559]
[1743160997414,42.4387,131.65,131.64,0.0537559]
[1743160998822,42.4387,131.65,131.59,7.6018]
[1743160998823,34.84,131.65,131.59,7.6018]
[1743160999006,34.84,131.65,131.58,15.30431335]
[1743160999210,7.6003,131.63,131.58,15.30431335]
[1743160999410,7.6003,131.63,131.6,7.6013]
[1743160999816,7.6006,131.62,131.59,7.602]
[1743161000013,0.05497982,131.63,131.6,0.04885415]
[1743161001020,7.6009,131.62,131.6,0.04885415]
[1743161001614,7.601,131.61,131.6,0.04885415]
[1743161001807,0.05497982,131.63,131.6,0.04885415]
[1743161002209,7.601,131.61,131.6,0.04885415]
[1743161003225,7.6008,131.62,131.6,0.04885415]
[1743161003821,0.05497982,131.63,131.6,0.04885415]
[1743161004208,7.65517982,131.63,131.6,0.04885415]
[1743161004408,0.05497982,131.63,131.6,0.04885415]
[1743161004619,34.61497982,131.63,131.6,0.04885415]
[1743161005021,42.21507982,131.63,131.6,7.65015415]
[1743161005323,34.61497982,131.63,131.6,0.04885415]
[1743161005922,7.601,131.61,131.6,0.04885415]
[1743161006816,34.61497982,131.63,131.6,0.04885415]
[1743161007017,7.6008,131.62,131.6,7.65035415]
[1743161007223,34.61497982,131.63,131.6,7.65035415]
[1743161007413,7.65517982,131.63,131.6,7.65035415]
[1743161007615,34.36,131.62,131.6,7.65035415]
[1743161009024,34.36,131.62,131.61,7.601]
[1743161009524,7.65497982,131.63,131.6,7.64995415]
[1743161009718,41.89497982,131.63,131.6,7.64995415]
[1743161011622,7.6006,131.62,131.6,7.64995415]
[1743161011818,34.29497982,131.63,131.61,7.601]
[1743161012230,41.89517982,131.63,131.61,7.601]
[1743161012425,34.29497982,131.63,131.6,7.65025415]
[1743161012722,7.6008,131.62,131.6,7.65025415]
[1743161012922,7.6008,131.62,131.6,0.04885415]
[1743161013524,7.6008,131.62,131.6,7.65035415]
[1743161013723,7.601,131.61,131.6,0.04885415]
[1743161019326,0.05497982,131.63,131.6,0.04885415]
[1743161019528,33.63497982,131.63,131.6,0.04885415]
[1743161020325,41.23537982,131.63,131.6,0.04885415]
[1743161020629,33.63497982,131.63,131.6,0.04885415]
[1743161021928,33.51497982,131.63,131.6,0.04885415]
[1743161022124,7.6007,131.62,131.6,0.04885415]
[1743161022631,7.6007,131.62,131.6,7.65045415]
[1743161022931,7.601,131.61,131.6,0.04885415]
[1743161024326,33.51497982,131.63,131.6,0.04885415]
[1743161024532,0.05497982,131.63,131.62,7.6005]
[1743161024729,0.05497982,131.63,131.6,0.04885415]
[1743161024929,0.05497982,131.63,131.61,7.6006]
[1743161025131,0.05497982,131.63,131.6,0.04885415]
[1743161025531,0.05497982,131.63,131.61,7.6008]
[1743161026628,0.05497982,131.63,131.62,7.6005]